bitfinex-derivatives/quotes_ETHF0:USTF0_20241230
["timestamp","ask_amount","ask_price","bid_price","bid_amount"]
[1735598966353,0.74504,3361.4,3360.4,3.2078]
[1735598966555,1.34002,3361.5,3360.5,0.6134]
[1735598966755,0.29805,3361.0,3360.8,0.29806]
[1735598966960,0.29805,3361.0,3360.9,0.29806]
[1735598967352,0.29805,3361.1,3360.9,0.29806]
[1735598967759,0.29804,3361.2,3361.0,0.29805]
[1735598968160,0.29802,3361.4,3360.8,3.2078]
[1735598968361,0.29801,3361.5,3360.9,2.24748076]
[1735598968660,0.29801,3361.5,3361.0,0.29805]
[1735598968861,0.29801,3361.5,3361.4,0.29801]
[1735598969457,0.29801,3361.5,3361.3,0.29802]
[1735598969658,0.29801,3361.5,3361.4,0.29801]
[1735598969962,0.29802,3361.4,3361.3,0.29802]
[1735598970264,3.5058,3361.6,3361.4,0.29801]
[1735598970859,0.25136001,3361.9,3361.3,3.2078]
[1735598971064,0.29798,3361.8,3361.6,0.29799]
[1735598971257,3.2078,3362.1,3361.6,0.29799]
[1735598971456,0.29799,3361.7,3361.6,0.29799]
[1735598971754,0.29799,3361.7,3361.4,0.6041]
[1735598972061,0.29801,3361.4,3361.3,3.50582]
[1735598972851,0.74491,3362.0,3361.3,3.50582]
[1735598973056,0.74491,3362.0,3361.3,3.2078]
[1735598973261,0.29801,3361.5,3361.3,3.50582]
[1735598978265,0.29801,3361.5,3361.4,0.29801]
[1735598979467,0.298,3361.6,3361.4,0.29801]
[1735598980069,0.29801,3361.5,3361.3,3.50581]
[1735598980369,0.298,3361.6,3361.4,0.29801]
[1735598980963,0.24664708,3362.0,3361.4,0.29801]
[1735598981168,0.298,3361.6,3361.4,0.29801]
[1735598983372,0.298,3361.6,3361.3,3.2078]
[1735598983972,0.298,3361.6,3361.4,0.298]
[1735598984669,0.298,3361.6,3361.5,0.298]
[1735598985171,0.298,3361.6,3361.4,0.298]
[1735598985977,0.298,3361.6,3361.3,3.2078]
[1735598986274,0.298,3361.6,3361.4,0.298]
[1735598986669,0.298,3361.6,3361.3,3.2078]
[1735598986968,0.298,3361.6,3361.5,0.298]
[1735598987268,0.29799,3361.7,3361.5,0.298]
[1735598988375,0.298,3361.6,3361.5,0.298]
[1735599002775,0.29801,3361.5,3361.4,0.29801]
[1735599005780,0.298,3361.6,3361.4,0.298]
[1735599006380,0.5869,3361.9,3361.4,0.298]
[1735599006585,0.298,3361.5,3361.4,0.298]
[1735599007989,0.29801,3361.4,3361.3,3.2078]
[1735599008683,0.29802,3361.3,3361.2,1.2568]
[1735599011389,0.29802,3361.3,3361.2,0.6237]
[1735599013988,3.4710282,3361.4,3361.3,0.29802]
[1735599013989,4.6787848,3361.4,3361.3,0.29802]
[1735599014490,4.9767948,3361.4,3361.3,0.90962]
[1735599014691,4.9767948,3361.4,3361.3,0.6116]
[1735599014893,0.29801,3361.4,3361.3,0.6116]
[1735599016091,4.9767948,3361.4,3361.3,0.6116]
[1735599016585,4.6787848,3361.4,3361.3,0.6116]
[1735599016791,4.6787848,3361.4,3361.3,4.11742]
[1735599017388,4.9767948,3361.5,3361.3,4.11742]
[1735599018090,4.6787848,3361.5,3361.3,3.8194]
[1735599018396,4.9767948,3361.4,3361.3,3.8194]
[1735599019401,4.9767948,3361.4,3361.3,4.11742]
[1735599020402,4.6787848,3361.4,3361.3,4.11742]
[1735599020602,4.9767948,3361.4,3361.3,4.11742]
[1735599025611,4.9767948,3361.4,3361.3,3.8194]
[1735599026612,4.9767948,3361.4,3361.3,0.6116]
[1735599027418,4.9767948,3361.4,3361.3,0.90962]
[1735599031312,4.9767948,3361.4,3361.3,0.6116]
[1735599031913,0.29802,3361.3,3361.2,44.92953]
[1735599032314,0.29802,3361.3,3361.2,44.6315]
[1735599033119,4.6787848,3361.4,3361.2,44.6315]
[1735599033317,4.9768048,3361.4,3361.2,44.92953]
[1735599033919,4.9768048,3361.4,3361.3,0.29802]
[1735599034617,4.9768048,3361.4,3361.2,44.6315]
[1735599034618,0.29802,3361.3,3361.2,44.6315]
[1735599034817,0.29802,3361.3,3361.2,44.92953]
[1735599035317,4.9768048,3361.4,3361.2,44.92953]
[1735599035912,4.9768048,3361.4,3361.2,44.6315]
[1735599036217,4.9768048,3361.4,3361.3,0.29802]
[1735599036418,0.29802,3361.4,3361.3,0.29802]
[1735599038212,4.6787848,3361.5,3361.4,0.29801]
[1735599039412,3.5186114,3361.6,3361.5,0.298]
[1735599040815,3.5186114,3361.6,3361.5,3.5058]
[1735599043120,3.5186114,3361.6,3361.5,0.298]
[1735599043323,0.29799,3361.7,3361.6,0.29799]
[1735599043324,3.8166014,3361.7,3361.6,0.29799]
[1735599043923,0.298,3361.6,3361.5,0.298]
[1735599044116,4.88086458,3361.7,3361.5,0.298]
[1735599044318,1.36225318,3361.7,3361.5,0.298]
[1735599045513,6.04103798,3361.7,3361.5,0.298]
[1735599047524,6.04103798,3361.7,3361.4,3.8055]
[1735599047525,6.04103798,3361.7,3361.6,0.29799]
[1735599049120,0.298,3361.6,3361.5,0.298]
[1735599049326,6.04103798,3361.7,3361.6,0.29799]
[1735599052129,6.04103798,3361.7,3361.5,0.6674]
[1735599052130,5.74304798,3361.7,3361.5,0.6674]
[1735599052426,0.29799,3361.6,3361.5,0.9654]
[1735599053222,1.36225318,3361.7,3361.6,0.29799]
[1735599054121,1.06426318,3361.7,3361.5,0.6674]
[1735599054322,0.29799,3361.6,3361.5,0.9654]
[1735599055125,4.58073132,3361.7,3361.5,0.9654]
[1735599055430,4.87872132,3361.7,3361.6,0.29799]
[1735599055630,3.81445814,3361.7,3361.6,0.29799]
[1735599060928,0.29799,3361.6,3361.5,0.9654]
[1735599063328,1.06426318,3361.6,3361.4,3.8055]
[1735599063530,0.298,3361.5,3361.4,3.2078]
[1735599063733,0.9749,3361.5,3361.4,3.2078]
[1735599068735,1.2159001,3361.5,3361.4,3.2078]
[1735599070234,0.9179001,3361.5,3361.2,0.92173]
[1735599070436,0.29802,3361.3,3361.2,0.92173]
[1735599072041,3.81342222,3361.3,3361.2,0.92173]
[1735599073639,3.81342222,3361.3,3361.2,0.6237]
[1735599074541,0.29802,3361.3,3361.2,0.6237]
[1735599074842,0.29802,3361.3,3361.2,0.92173]
[1735599076244,0.29802,3361.3,3361.2,0.6237]
[1735599077345,3.81290755,3361.3,3361.2,0.6237]
[1735599081145,3.81290755,3361.3,3360.7,3.58924965]
[1735599081146,0.595,3361.2,3360.7,3.58924965]
[1735599081348,0.29809,3360.5,3360.4,5.86539544]
[1735599081545,0.29811,3360.3,3360.2,10.55474048]
[1735599081854,5.63443636,3360.3,3360.2,7.40976964]
[1735599082044,0.29814,3360.0,3359.9,15.48289997]
[1735599082244,2.42666636,3360.0,3359.9,15.48289997]
[1735599082952,2.42666636,3360.0,3359.0,31.26202435]
[1735599082953,0.29821,3359.2,3359.0,3.50602]
[1735599083146,1.06426318,3359.4,3359.0,3.2078]
[1735599083350,1.06426318,3359.4,3358.5,1.9771]
[1735599083351,0.29824,3358.9,3358.7,0.29824]
[1735599083556,3.2078,3359.3,3358.5,5.1849]
[1735599083747,0.29822,3359.1,3358.9,0.29823]
[1735599084252,1.06426318,3359.1,3358.6,1.06426318]
[1735599084459,0.29823,3359.0,3358.8,0.29824]
[1735599084953,0.29823,3359.0,3358.7,0.29825]
[1735599085851,0.32659318,3359.1,3358.7,0.29825]
[1735599086147,0.59323694,3359.5,3359.4,0.29819]
[1735599086348,3.50766564,3359.6,3359.5,0.29818]
[1735599086945,3.50766564,3359.6,3359.5,41.09818]
[1735599087356,0.2419846,3359.7,3359.6,0.29817]
[1735599087550,4.57192882,3360.2,3359.5,40.8]
[1735599087853,4.57192882,3360.2,3360.0,3.50593]
[1735599088044,3.50766564,3360.2,3360.1,0.29813]
[1735599088650,4.67688752,3360.4,3360.1,0.29813]
[1735599088651,3.50766564,3360.4,3360.1,40.8]
[1735599088853,3.80576564,3360.4,3360.2,0.29812]
[1735599089853,0.2981,3360.4,3360.2,0.29812]
[1735599090057,0.29809,3360.6,3360.3,0.29811]
[1735599090355,0.29809,3360.5,3360.3,0.29811]
[1735599092150,0.29808,3360.7,3360.4,0.2981]
[1735599092350,0.29808,3360.7,3360.1,42.1046]
[1735599092655,0.29808,3360.7,3360.5,0.29809]
[1735599094652,3.50586,3360.9,3360.7,0.29807]
[1735599094849,3.83979255,3361.1,3360.7,0.29807]
[1735599095052,0.29806,3360.9,3360.7,0.29807]
[1735599096258,3.59777664,3361.1,3360.8,0.29807]
[1735599096459,3.59777664,3361.1,3360.5,3.2078]
[1735599096656,0.29806,3360.9,3360.7,0.29807]
[1735599097158,0.29807,3360.8,3360.7,0.29807]
[1735599098258,0.29805,3361.0,3360.7,0.29807]
[1735599098459,0.29806,3360.9,3360.7,0.29807]
[1735599098956,0.29806,3360.9,3360.8,0.29807]
[1735599099157,0.29806,3360.9,3360.7,0.29807]
[1735599099357,0.29806,3360.9,3360.8,0.29807]
[1735599099760,3.59777664,3361.1,3360.5,3.2078]
[1735599099954,3.59777664,3361.1,3360.7,0.29807]
[1735599100359,3.59777664,3361.1,3360.5,3.2078]
[1735599100559,0.29806,3360.9,3360.8,0.29806]
[1735599102760,0.29805,3361.0,3360.9,0.29806]
[1735599104661,0.29807,3360.8,3360.7,3.50587]
[1735599105657,1.3477,3361.1,3360.7,3.2078]
[1735599105858,3.50766564,3361.3,3361.2,0.29803]
[1735599106665,4.67688752,3361.5,3361.2,8.2078]
[1735599106961,4.67688752,3361.8,3361.4,2.25007664]
[1735599107163,4.67688752,3361.8,3361.7,5.75586664]
[1735599108667,7.66504705,3362.4,3361.7,5.75586664]
[1735599108668,0.6469,3362.4,3361.7,5.45787664]
[1735599108963,0.6469,3362.4,3362.3,0.29793]
[1735599112365,0.94482,3362.4,3362.3,0.29793]
[1735599113964,0.94482,3362.4,3362.1,3.2078]
[1735599113965,0.29794,3362.3,3362.2,0.29794]
[1735599114166,0.6469,3362.4,3362.1,3.2078]
[1735599114359,0.29794,3362.2,3362.1,3.50575]
[1735599116769,0.29794,3362.2,3362.1,3.2078]
[1735599120767,0.29794,3362.2,3362.1,3.50575]
[1735599122175,0.29794,3362.2,3362.1,0.29795]
[1735599128567,0.29794,3362.2,3362.1,41.09795]
[1735599134679,0.6469,3362.4,3362.1,40.8]
[1735599134879,0.29794,3362.3,3362.2,0.29793]
[1735599135579,0.29794,3362.3,3362.2,41.09793]
[1735599136379,0.29794,3362.3,3362.2,42.16151513]
[1735599142583,0.6469,3362.4,3362.3,0.29793]
[1735599143284,0.6469,3362.4,3362.3,3.50573]
[1735599143984,0.94482,3362.4,3362.3,3.50573]
[1735599146084,0.94482,3362.4,3362.3,0.29793]
[1735599152085,1.39180401,3362.4,3362.3,0.29793]
[1735599153390,6.04221233,3362.4,3362.3,0.29793]
[1735599171498,5.70207962,3362.4,3362.3,0.29793]
[1735599172592,1.39180401,3362.4,3362.3,0.29793]
[1735599172800,0.94482,3362.4,3362.3,0.29793]
[1735599174098,5.70207962,3362.4,3362.3,0.29793]
[1735599174305,5.40415962,3362.4,3362.2,44.0078]
[1735599174496,0.29796,3362.0,3361.9,6.89804122]
[1735599174903,0.29796,3362.0,3361.9,47.69804122]
[1735599175405,0.44698401,3362.0,3361.8,4.56935513]
[1735599175612,0.29797,3361.9,3361.8,4.56935513]
[1735599175904,0.29797,3361.9,3361.8,45.36935513]
[1735599176807,0.44698401,3361.9,3361.8,45.36935513]
[1735599177008,0.74495401,3361.9,3361.8,45.36935513]
[1735599178303,0.29797,3361.9,3361.8,45.36935513]
[1735599179410,0.29797,3361.9,3361.8,49.95730773]
[1735599181208,0.29797,3361.9,3361.8,46.74950773]
[1735599181413,0.29797,3361.9,3361.8,49.95730773]
[1735599181811,3.51726487,3362.0,3361.8,49.65933773]
[1735599182011,3.81522487,3362.0,3361.9,0.29797]
[1735599182907,3.51726487,3362.0,3361.9,0.29797]
[1735599183415,3.81522487,3362.0,3361.9,0.29797]
[1735599184716,4.26225488,3362.0,3361.9,0.29797]
[1735599184915,3.96429488,3362.0,3361.9,0.29797]
[1735599185114,3.96429488,3362.0,3361.9,0.94497]
[1735599186017,3.51726487,3362.0,3361.9,0.94497]
[1735599190919,3.51726487,3362.0,3361.9,1.60427]
[1735599200330,3.51726487,3362.1,3362.0,0.29796]
[1735599208737,3.51726487,3362.1,3362.0,3.50576]
[1735599209526,4.18276487,3362.1,3362.0,3.50576]
[1735599210943,1.11253001,3362.1,3362.0,3.50576]
[1735599212740,0.6655,3362.1,3362.0,3.50576]
[1735599214142,1.11253001,3362.1,3362.0,3.50576]
[1735599216043,1.71483001,3362.1,3362.0,3.50576]
[1735599219739,1.71483001,3362.1,3362.0,8.13195466]
[1735599226635,1.11253001,3362.1,3362.0,8.13195466]
[1735599227237,5.80319847,3362.1,3362.0,8.13195466]
[1735599228741,1.11253001,3362.1,3362.0,8.13195466]
[1735599231538,0.44703001,3362.1,3362.0,8.13195466]
[1735599233346,4.69066846,3362.2,3362.1,0.29795]
[1735599234541,5.13769847,3362.2,3362.1,0.29795]
[1735599235744,4.69066846,3362.2,3362.1,4.92414466]
[1735599236938,1.18996846,3362.2,3362.1,9.92414466]
[1735599237139,5.8130104,3362.4,3362.3,0.29793]
[1735599237447,5.1175304,3362.4,3362.3,2.66451513]
[1735599237639,3.5891604,3362.4,3362.3,7.66451513]
[1735599238040,3.5891604,3362.4,3362.3,48.46451513]
[1735599238645,2.3439273,3363.0,3362.3,74.40747043]
[1735599238835,2.3439273,3363.0,3362.9,4.56926513]
[1735599240340,1.4476,3363.3,3362.9,4.56926513]
[1735599240341,3.7915273,3363.3,3363.2,0.29785]
[1735599241849,1.4476,3363.3,3363.2,0.29785]
[1735599242148,1.4476,3363.3,3363.2,1.36143513]
[1735599243041,1.4476,3363.3,3363.2,5.9715719]
[1735599244148,1.4476,3363.3,3363.2,46.7715719]
[1735599244350,1.4476,3363.3,3363.2,42.16143513]
[1735599244840,1.4476,3363.3,3363.2,41.09785]
[1735599245047,1.4476,3363.3,3363.2,42.16143513]
[1735599251650,0.7878,3363.8,3363.7,0.2978]
[1735599251842,0.7878,3363.8,3363.7,1.36138513]
[1735599251843,2.2953,3363.8,3363.7,1.36138513]
[1735599253047,0.7328,3363.8,3363.7,1.36138513]
[1735599253450,1.4764,3364.3,3364.2,0.29776]
[1735599253644,0.7287,3364.3,3364.2,1.36134513]
[1735599253845,0.7287,3364.3,3364.2,42.16134513]
[1735599254655,0.7475,3364.4,3364.2,41.86358513]
[1735599254951,0.7475,3364.4,3364.3,0.29776]
[1735599256443,0.7475,3364.4,3364.3,1.36134513]
[1735599257447,0.7475,3364.4,3364.3,0.29776]
[1735599257647,0.7475,3364.4,3364.3,1.36134513]
[1735599257848,0.7475,3364.4,3364.3,0.29776]
[1735599258043,0.7477,3364.6,3364.5,0.29774]
[1735599258249,0.7477,3364.6,3364.5,4.56912513]
[1735599258447,0.7287,3364.9,3364.5,4.27138513]
[1735599258751,0.7287,3364.9,3364.8,0.29771]
[1735599258947,0.7287,3364.9,3364.8,1.36129513]
[1735599259557,0.7593,3365.3,3364.8,42.16129513]
[1735599259750,0.7182,3365.2,3365.1,0.29769]
[1735599259951,0.7182,3365.2,3365.1,4.56907513]
[1735599260454,0.7182,3365.2,3365.1,3.50549]
[1735599260656,0.7182,3365.2,3365.1,4.56907513]
[1735599261049,0.7182,3365.2,3365.1,3.50549]
[1735599261250,1.4572,3365.2,3365.1,4.56907513]
[1735599262556,1.4572,3365.2,3365.1,3.50549]
[1735599262746,1.4572,3365.2,3365.1,4.56907513]
[1735599264259,1.4572,3365.2,3365.1,3.50549]
[1735599264453,1.4572,3365.2,3365.1,1.13909]
[1735599264758,1.4572,3365.2,3365.1,1.43678]
[1735599265448,1.4572,3365.2,3365.1,2.50036513]
[1735599268355,1.4572,3365.2,3365.1,1.43678]
[1735599269060,1.4572,3365.2,3365.1,2.50036513]
[1735599270659,1.4572,3365.2,3365.1,1.36127513]
[1735599275662,0.7593,3365.3,3365.2,0.29768]
[1735599276663,0.7593,3365.3,3365.2,1.36126513]
[1735599277463,0.7326,3365.5,3365.4,0.29766]
[1735599277661,0.7326,3365.5,3365.4,1.36124513]
[1735599279257,0.7696,3365.7,3365.6,0.29764]
[1735599279458,0.7696,3365.7,3365.6,42.16122513]
[1735599286574,3.9774,3365.7,3364.7,4.61013677]
[1735599286770,0.29768,3365.2,3365.0,0.29769]
[1735599286970,1.516,3365.1,3365.0,0.29769]
[1735599287172,2.53699,3365.1,3364.9,0.2977]
[1735599287566,2.53699,3365.1,3365.0,40.8]
[1735599287767,1.08589,3365.1,3365.0,40.8]
[1735599287969,0.7882,3365.1,3365.0,41.09769]
[1735599288677,0.7882,3365.1,3365.0,40.8]
[1735599288884,0.7882,3365.1,3365.0,41.86358513]
[1735599289071,0.7882,3365.1,3365.0,42.16127513]
[1735599291276,1.5021,3365.1,3365.0,42.16127513]
[1735599299882,0.7882,3365.1,3365.0,42.16127513]
[1735599301786,0.78994344,3365.1,3365.0,42.16127513]
[1735599305376,0.78994344,3365.1,3365.0,46.7714119]
[1735599305987,0.00174344,3365.1,3365.0,46.7714119]
[1735599306880,0.00174344,3365.1,3365.0,47.33821769]
[1735599311289,0.00174344,3365.1,3365.0,42.16127513]
[1735599321787,1.477,3365.4,3365.3,0.29767]
[1735599321994,1.477,3365.4,3365.3,1.36125513]
[1735599323493,1.477,3365.4,3365.3,5.97278312]
[1735599327505,2.3439273,3365.8,3365.7,0.29763]
[1735599327702,4.98969095,3365.8,3365.7,1.36121513]
[1735599328203,4.98969095,3365.8,3365.7,42.16121513]
[1735599329306,1.4738,3365.8,3365.7,46.77274312]
[1735599330208,2.33956529,3366.0,3365.7,49.68291312]
[1735599330398,2.33956529,3366.0,3365.9,1.36119513]
[1735599331304,3.51589095,3366.2,3366.1,0.2976]
[1735599331305,2.33956529,3366.2,3366.1,0.2976]
[1735599331504,2.33956529,3366.2,3366.1,1.36118513]
[1735599332003,2.33956529,3366.2,3366.1,4.56898513]
[1735599332203,2.33956529,3366.2,3366.1,5.27138513]
[1735599332517,2.33956529,3366.6,3366.5,0.29756]
[1735599332708,2.33956529,3366.6,3366.5,1.36114513]
[1735599333403,2.33956529,3366.6,3366.5,10.86294513]
[1735599333594,1.16956529,3366.6,3366.5,10.86294513]
[1735599333798,1.16956529,3366.6,3366.5,51.66294513]
[1735599333998,0.04009407,3367.1,3366.5,57.34294906]
[1735599334201,0.04009407,3367.1,3367.0,4.56890513]
[1735599335202,0.04009407,3367.1,3367.0,1.36110513]
[1735599335809,0.7221,3367.2,3367.0,5.97752393]
[1735599336307,0.7221,3367.2,3367.0,4.9139388]
[1735599336702,0.7221,3367.2,3367.0,4.6164188]
[1735599336903,0.29751,3367.1,3367.0,4.6164188]
[1735599337102,0.29751,3367.1,3366.8,2.24028694]
[1735599337403,0.7257,3367.0,3366.8,2.24028694]
[1735599338307,0.7257,3367.0,3366.8,2.53781694]
[1735599339999,0.7257,3367.0,3366.6,3.2078]
[1735599340206,1.02322,3367.0,3366.6,3.50534]
[1735599340707,0.7257,3367.0,3366.7,0.29754]
[1735599342309,0.7257,3367.0,3366.8,2.24028694]
[1735599342516,0.75,3367.4,3367.3,0.29749]
[1735599343206,0.75,3367.4,3366.8,2.24028694]
[1735599343406,1.4812,3367.3,3367.0,0.29751]
[1735599344008,0.2975,3367.2,3366.8,2.53781694]
[1735599344408,0.2975,3367.2,3366.8,2.24028694]
[1735599344610,0.2975,3367.2,3366.9,0.29753]
[1735599344914,1.7787,3367.3,3366.9,0.29753]
[1735599347614,1.7787,3367.3,3367.0,0.29752]
[1735599347815,1.4812,3367.3,3367.0,0.29752]
[1735599348116,1.4812,3367.3,3366.8,2.24028694]
[1735599348309,1.77869,3367.3,3367.0,0.29752]
[1735599351911,0.2975,3367.2,3366.8,2.53781694]
[1735599352211,0.2975,3367.2,3366.9,0.29752]
[1735599352417,0.2975,3367.2,3366.8,2.53781694]
[1735599353011,0.29751,3367.1,3366.8,2.53781694]
[1735599353212,1.4812,3367.3,3366.8,2.24028694]
[1735599353415,1.4812,3367.3,3367.2,2.53778694]
[1735599354618,3.2078,3367.7,3367.6,0.29746]
[1735599355006,3.2078,3367.7,3367.6,40.8]
[1735599355408,3.2078,3367.7,3367.6,41.09746]
[1735599356420,3.50526,3367.7,3367.6,41.8601715]
[1735599356921,3.50526,3367.7,3367.6,1.0601715]
[1735599357518,3.50526,3367.7,3367.6,1.3576315]
[1735599357709,3.50526,3367.7,3367.6,0.29746]
[1735599358916,3.2078,3367.7,3367.6,1.3576315]
[1735599359110,3.50526,3367.7,3367.6,1.3576315]
[1735599360619,3.2078,3367.7,3367.0,3.2078]
[1735599360914,0.29751,3367.1,3367.0,1.0601715]
[1735599361110,3.50531,3367.1,3367.0,1.0601715]
[1735599361812,3.2078,3367.1,3367.0,1.0601715]
[1735599362013,0.29751,3367.1,3367.0,1.3576815]
[1735599363121,2.234,3367.2,3366.9,40.8]
[1735599363322,0.29751,3367.1,3367.0,1.0601715]
[1735599365618,0.29751,3367.1,3367.0,1.3576915]
[1735599365922,0.29751,3367.1,3367.0,1.0601715]
[1735599366917,0.29751,3367.1,3367.0,1.3576915]
[1735599368025,2.234,3367.2,3367.0,1.0601715]
[1735599368222,2.5315,3367.2,3367.1,0.29751]
[1735599370925,2.234,3367.2,3367.1,0.29751]
[1735599371222,3.50526,3367.7,3367.6,0.29746]
[1735599371437,5.00426,3367.7,3367.6,0.29746]
[1735599371829,5.00426,3367.7,3367.6,41.09746]
[1735599372521,4.7068,3367.7,3367.6,41.09746]
[1735599372830,5.00426,3367.7,3367.6,41.09746]
[1735599373124,4.7068,3367.7,3367.6,41.09746]
[1735599373929,5.00426,3367.7,3367.6,41.09746]
[1735599374928,5.00426,3367.7,3367.6,42.1576315]
[1735599375130,4.7068,3367.7,3367.6,42.1576315]
[1735599375530,5.00426,3367.7,3367.6,42.1576315]
[1735599375931,4.7068,3367.7,3367.6,42.1576315]
[1735599376535,5.00426,3367.7,3367.6,1.3576315]
[1735599376830,4.7068,3367.7,3367.6,1.3576315]
[1735599377129,5.00426,3367.7,3367.6,1.0601715]
[1735599377429,5.00426,3367.7,3367.6,1.3576315]
[1735599378134,4.7068,3367.7,3367.6,1.3576315]
[1735599378331,4.7068,3367.7,3367.4,45.4164188]
[1735599378539,4.7068,3367.7,3367.5,4.6164188]
[1735599378540,1.3576315,3367.6,3367.5,4.6164188]
[1735599379837,0.29751,3367.1,3367.0,4.9139288]
[1735599380434,3.2078,3367.3,3367.0,4.6164188]
[1735599380629,1.5104,3367.2,3367.1,0.2975]
[1735599382139,1.5104,3367.2,3366.9,4.6164188]
[1735599382140,3.51589095,3367.5,3367.4,0.29748]
[1735599382343,8.57788342,3367.7,3367.0,6.1084088]
[1735599382344,3.51589095,3367.6,3367.0,6.1084088]
[1735599382641,3.51589095,3367.6,3367.5,0.29747]
[1735599383235,3.51589095,3367.6,3367.5,41.09747]
[1735599383435,5.70916,3367.7,3367.5,41.09747]
[1735599383635,5.4117,3367.7,3367.5,41.09747]
[1735599383831,0.29746,3367.6,3367.5,40.8]
[1735599384333,0.29746,3367.6,3367.5,41.09747]
[1735599384931,5.70916,3367.7,3367.6,0.29746]
[1735599385241,0.29746,3367.6,3367.5,41.09747]
[1735599385737,5.4117,3367.7,3367.4,0.29748]
[1735599385938,0.29747,3367.5,3367.4,0.29748]
[1735599388546,5.4117,3367.7,3367.2,4.6164188]
[1735599388547,5.4117,3367.7,3367.2,4.9139088]
[1735599388747,0.29749,3367.3,3367.2,4.9139188]
[1735599389044,0.29749,3367.3,3367.2,45.7139188]
[1735599391347,8.92759095,3367.7,3367.2,45.4164188]
[1735599391548,0.29749,3367.4,3367.3,0.29749]
[1735599391942,0.29746,3367.6,3367.3,0.29748]
[1735599392148,8.92759095,3367.7,3367.2,45.4164188]
[1735599392337,0.29748,3367.5,3367.4,0.29747]
[1735599393146,5.4117,3367.7,3367.2,45.4164188]
[1735599393344,0.29746,3367.6,3367.4,0.29748]
[1735599393545,5.4117,3367.7,3367.2,45.4164188]
[1735599393744,0.29747,3367.6,3367.5,0.29746]
[1735599395852,3.50527,3367.6,3367.5,0.29746]
[1735599396253,0.29748,3367.5,3367.3,4.6164188]
[1735599396453,0.29748,3367.5,3367.4,0.29748]
[1735599396754,0.29748,3367.4,3367.3,4.9139088]
[1735599396956,0.29748,3367.4,3367.3,0.29749]
[1735599397249,0.29749,3367.3,3367.2,45.4164188]
[1735599397455,0.29748,3367.5,3367.4,0.29748]
[1735599397755,1.03638,3367.5,3367.4,0.29748]
[1735599397950,1.79848,3367.5,3367.4,0.29748]
[1735599399349,1.501,3367.5,3367.4,0.29748]
[1735599399754,1.79847,3367.5,3367.4,0.29748]
[1735599400054,1.501,3367.5,3367.4,0.29748]
[1735599400252,3.50527,3367.6,3367.3,4.6164188]
[1735599400253,3.2078,3367.6,3367.5,0.29747]
[1735599400948,0.29746,3367.7,3367.5,0.29747]
[1735599400949,3.51589095,3367.9,3367.8,0.29745]
[1735599401352,3.51589095,3367.9,3367.8,1.35773098]
[1735599401555,3.51589095,3367.9,3367.8,42.15773098]
[1735599402350,0.2974,3368.4,3368.2,0.2974]
[1735599402757,7.43089095,3368.5,3367.9,0.7076]
[1735599403149,7.72828095,3368.5,3368.3,0.2974]
[1735599403351,7.72828095,3368.5,3368.0,0.29743]
[1735599403552,0.2974,3368.4,3368.2,0.29741]
[1735599403960,4.21239,3368.5,3368.3,0.2974]
[1735599404160,0.29739,3368.4,3368.2,0.29741]
[1735599404360,4.21239,3368.5,3368.0,4.9923188]
[1735599404559,4.21239,3368.5,3368.3,0.2974]
[1735599404761,4.21239,3368.5,3368.2,0.29741]
[1735599404959,3.2078,3368.5,3368.1,0.681]
[1735599405264,3.50519,3368.5,3368.4,0.29739]
[1735599406055,3.50519,3368.5,3368.1,0.681]
[1735599406259,0.29739,3368.4,3368.3,0.2974]
[1735599406463,1.04599,3368.4,3368.3,0.2974]
[1735599407460,4.99959095,3368.9,3368.2,2.23872144]
[1735599407657,0.29738,3368.6,3368.4,0.29739]
[1735599408062,0.29738,3368.6,3368.2,2.23872144]
[1735599408260,0.7204,3368.8,3368.5,0.29739]
[1735599408461,0.29737,3368.7,3368.6,0.29738]
[1735599408663,0.7204,3368.8,3368.2,2.23872144]
[1735599408861,0.29739,3368.5,3368.4,0.29739]
[1735599409061,0.7204,3368.8,3368.2,2.23872144]
[1735599409471,0.29738,3368.6,3368.5,0.29738]
[1735599409764,0.29738,3368.6,3368.2,2.23872144]
[1735599409765,0.29739,3368.5,3368.4,0.29739]
[1735599409962,0.29738,3368.6,3368.5,0.29738]
[1735599410157,0.7204,3368.8,3368.3,0.2974]
[1735599410158,0.29738,3368.7,3368.3,0.2974]
[1735599410358,0.29738,3368.6,3368.5,0.29738]
[1735599410756,1.01776,3368.8,3368.7,0.29737]
[1735599411964,0.7204,3368.8,3368.7,0.29737]
[1735599412363,1.01776,3368.8,3368.7,0.29737]
[1735599414068,0.7204,3368.8,3368.4,0.7399]
[1735599414269,0.7204,3368.8,3368.7,0.29737]
[1735599414669,0.7204,3368.8,3368.4,0.7399]
[1735599414670,0.29737,3368.7,3368.6,0.29737]
[1735599414967,0.29737,3368.7,3368.6,41.09737]
[1735599416169,0.29737,3368.7,3368.6,40.8]
[1735599418073,0.7204,3368.8,3368.1,3.2078]
[1735599418268,0.29741,3368.3,3368.1,3.50521]
[1735599418473,2.1531,3368.2,3368.1,3.50521]
[1735599418771,2.1531,3368.2,3368.1,3.2078]
[1735599418972,2.45051,3368.2,3368.1,3.2078]
[1735599419168,2.45051,3368.2,3368.1,40.8]
[1735599419367,2.45051,3368.2,3367.7,4.6164188]
[1735599419368,5.3609,3368.2,3367.7,4.6164188]
[1735599419567,0.29745,3367.8,3367.7,4.6164188]
[1735599419764,3.50525,3367.8,3367.7,4.6164188]
[1735599420174,3.2078,3367.8,3367.3,2.23872144]
[1735599420475,3.50525,3367.8,3367.7,40.8]
[1735599420673,3.2078,3367.8,3367.3,2.53621144]
[1735599420974,0.29748,3367.5,3367.3,2.53621144]
[1735599421272,0.29748,3367.5,3367.4,40.8]
[1735599421671,0.29748,3367.5,3367.4,41.09748]
[1735599422276,3.2078,3367.8,3367.4,41.09748]
[1735599423075,0.29747,3367.5,3367.4,41.09748]